[Event "Early-Titled-Tuesday-Blitz-November-28-2023"]
[Site "Chess.com"]
[Date "2023.11.28"]
[Round "6"]
[White "Abund"]
[Black "DawidCzerw"]
[Result "1-0"]
[WhiteElo "2774"]
[BlackElo "2533"]
[TimeControl "180+1"]
[EndTime "9:12:33 PST"]
[Termination "Abund won on time"]

1. e4 {[%clk 0:03:00.9]} 1... e6 {[%clk 0:02:57.2]} 2. d4 {[%clk 0:03:00.6]}
2... d5 {[%clk 0:02:57.3]} 3. Nd2 {[%clk 0:03:01.3]} 3... Be7 {[%clk 0:02:56.8]}
4. Bd3 {[%clk 0:02:53.2]} 4... c5 {[%clk 0:02:52.6]} 5. dxc5 {[%clk 0:02:51]}
5... Nf6 {[%clk 0:02:52.1]} 6. Qe2 {[%clk 0:02:50.1]} 6... a5 {[%clk 0:02:50.8]}
7. Ngf3 {[%clk 0:02:48.9]} 7... O-O {[%clk 0:02:49.3]} 8. O-O {[%clk 0:02:47]}
8... Na6 {[%clk 0:02:49.3]} 9. e5 {[%clk 0:02:45.2]} 9... Nd7 {[%clk 0:02:48.5]}
10. c3 {[%clk 0:02:45.7]} 10... Naxc5 {[%clk 0:02:47.5]} 11. Bc2 {[%clk
0:02:46.4]} 11... b5 {[%clk 0:02:48.1]} 12. Nd4 {[%clk 0:02:36.5]} 12... Ba6
{[%clk 0:02:29.8]} 13. Nxb5 {[%clk 0:02:14.2]} 13... Nxe5 {[%clk 0:01:54.3]} 14.
a4 {[%clk 0:02:06.2]} 14... Ng6 {[%clk 0:01:49.2]} 15. Nf3 {[%clk 0:02:06]}
15... Bd6 {[%clk 0:01:40.2]} 16. h4 {[%clk 0:02:00.1]} 16... Nf4 {[%clk
0:01:17.9]} 17. Bxf4 {[%clk 0:01:53.7]} 17... Bxf4 {[%clk 0:01:18.8]} 18. Rad1
{[%clk 0:01:46.2]} 18... Qf6 {[%clk 0:01:05.9]} 19. g3 {[%clk 0:01:41.6]} 19...
Bb8 {[%clk 0:00:59.6]} 20. Rfe1 {[%clk 0:01:32.6]} 20... Bb7 {[%clk 0:00:39.5]}
21. Nbd4 {[%clk 0:01:20.6]} 21... Ne4 {[%clk 0:00:27.3]} 22. Bxe4 {[%clk
0:01:05.2]} 22... dxe4 {[%clk 0:00:27.2]} 23. Ng5 {[%clk 0:01:05.9]} 23... e5
{[%clk 0:00:25.2]} 24. Nb5 {[%clk 0:01:04.5]} 24... Qe7 {[%clk 0:00:20]} 25.
Nxe4 {[%clk 0:01:02.9]} 25... f5 {[%clk 0:00:17.9]} 26. Ned6 {[%clk 0:01:00.4]}
26... e4 {[%clk 0:00:06.9]} 27. Qc4+ {[%clk 0:00:51.6]} 27... Kh8 {[%clk
0:00:06.7]} 28. Nxb7 {[%clk 0:00:51.1]} 28... Qxb7 {[%clk 0:00:06.2]} 29. Qd5
{[%clk 0:00:51.5]} 29... Qxd5 {[%clk 0:00:03.5]} 30. Rxd5 {[%clk 0:00:52.4]}
30... Ra6 {[%clk 0:00:01.9]} 31. Red1 {[%clk 0:00:51.8]} 31... Re6 {[%clk
0:00:01.5]} 32. Rxf5 {[%clk 0:00:51.2]} 1-0

[Event "Early-Titled-Tuesday-Blitz-November-28-2023"]
[Site "Chess.com"]
[Date "2023.11.28"]
[Round "6"]
[White "GMJustin"]
[Black "Khromkin"]
[Result "1-0"]
[WhiteElo "2296"]
[BlackElo "2475"]
[TimeControl "180+1"]
[EndTime "9:12:40 PST"]
[Termination "GMJustin won on time"]

1. e4 {[%clk 0:02:38.1]} 1... c5 {[%clk 0:02:59.2]} 2. Ne2 {[%clk 0:02:36.9]}
2... Nc6 {[%clk 0:02:59.4]} 3. d4 {[%clk 0:02:34.8]} 3... cxd4 {[%clk
0:02:58.5]} 4. Nxd4 {[%clk 0:02:33.9]} 4... g6 {[%clk 0:02:59]} 5. c4 {[%clk
0:02:32.7]} 5... Bg7 {[%clk 0:02:59.4]} 6. Be3 {[%clk 0:02:32.2]} 6... Nf6
{[%clk 0:03:00]} 7. Nc3 {[%clk 0:02:31.9]} 7... Ng4 {[%clk 0:03:00.4]} 8. Qxg4
{[%clk 0:02:31.7]} 8... Nxd4 {[%clk 0:03:01.1]} 9. O-O-O {[%clk 0:02:28.5]} 9...
Ne6 {[%clk 0:02:29.4]} 10. Nd5 {[%clk 0:02:25]} 10... d6 {[%clk 0:02:13.6]} 11.
Qe2 {[%clk 0:02:15.6]} 11... Bd7 {[%clk 0:02:11.7]} 12. Kb1 {[%clk 0:02:08.8]}
12... O-O {[%clk 0:01:47.7]} 13. h4 {[%clk 0:02:04.7]} 13... h5 {[%clk
0:01:44.2]} 14. g4 {[%clk 0:01:57.2]} 14... hxg4 {[%clk 0:01:43.2]} 15. h5
{[%clk 0:01:56.6]} 15... Nc5 {[%clk 0:01:26.7]} 16. Bg5 {[%clk 0:01:20.5]} 16...
f6 {[%clk 0:01:17.6]} 17. Bc1 {[%clk 0:00:58.9]} 17... Nxe4 {[%clk 0:01:16]} 18.
hxg6 {[%clk 0:00:50.8]} 18... Bf5 {[%clk 0:01:15.5]} 19. Ka1 {[%clk 0:00:50.6]}
19... Nc5 {[%clk 0:00:39.8]} 20. Nxe7+ {[%clk 0:00:45.6]} 20... Qxe7 {[%clk
0:00:38.8]} 21. Qxe7 {[%clk 0:00:45.1]} 21... Rad8 {[%clk 0:00:22.8]} 22. Rh7
{[%clk 0:00:35]} 22... Ne6 {[%clk 0:00:22.8]} 23. Bh6 {[%clk 0:00:24.9]} 1-0

[Event "Early-Titled-Tuesday-Blitz-November-28-2023"]
[Site "Chess.com"]
[Date "2023.11.28"]
[Round "6"]
[White "sofaceindisguise"]
[Black "Grischuk"]
[Result "0-1"]
[WhiteElo "2806"]
[BlackElo "3053"]
[TimeControl "180+1"]
[EndTime "9:12:41 PST"]
[Termination "Grischuk won by resignation"]

1. d4 {[%clk 0:02:59.9]} 1... e6 {[%clk 0:02:59.6]} 2. c4 {[%clk 0:03:00.1]}
2... b6 {[%clk 0:02:59.9]} 3. Nf3 {[%clk 0:02:59.9]} 3... Bb7 {[%clk 0:02:59.9]}
4. g3 {[%clk 0:03:00.4]} 4... Bb4+ {[%clk 0:02:59]} 5. Nbd2 {[%clk 0:03:00.2]}
5... c5 {[%clk 0:02:48.4]} 6. dxc5 {[%clk 0:02:55.1]} 6... Bxc5 {[%clk
0:02:47.8]} 7. Bg2 {[%clk 0:02:55.7]} 7... Nf6 {[%clk 0:02:47.5]} 8. O-O {[%clk
0:02:56.2]} 8... O-O {[%clk 0:02:47.4]} 9. b3 {[%clk 0:02:55.7]} 9... Be7 {[%clk
0:02:46.7]} 10. Bb2 {[%clk 0:02:55.7]} 10... a6 {[%clk 0:02:38.8]} 11. Qc2
{[%clk 0:02:56]} 11... h6 {[%clk 0:02:06.3]} 12. Rfd1 {[%clk 0:02:53.8]} 12...
Qc7 {[%clk 0:02:02.9]} 13. Rac1 {[%clk 0:02:54.2]} 13... d6 {[%clk 0:02:01.2]}
14. Qb1 {[%clk 0:02:54.3]} 14... Nbd7 {[%clk 0:02:01.1]} 15. Nf1 {[%clk
0:02:50.1]} 15... Rac8 {[%clk 0:01:59.6]} 16. Ne3 {[%clk 0:02:50.4]} 16... Qb8
{[%clk 0:01:58.2]} 17. Qa1 {[%clk 0:02:50.8]} 17... Rfd8 {[%clk 0:01:57.5]} 18.
Ne1 {[%clk 0:02:41.9]} 18... b5 {[%clk 0:01:48.6]} 19. Bxb7 {[%clk 0:02:41.2]}
19... Qxb7 {[%clk 0:01:49.5]} 20. Nf3 {[%clk 0:02:25.8]} 20... Bf8 {[%clk
0:01:46.8]} 21. Bc3 {[%clk 0:02:17.7]} 21... Ne4 {[%clk 0:01:46.3]} 22. Ba5
{[%clk 0:02:16.7]} 22... Re8 {[%clk 0:01:46]} 23. Qb1 {[%clk 0:02:02.2]} 23...
b4 {[%clk 0:01:33.4]} 24. Qb2 {[%clk 0:01:25.7]} 24... Rc5 {[%clk 0:01:19.7]}
25. Bxb4 {[%clk 0:01:11.2]} 25... Qxb4 {[%clk 0:01:20.6]} 26. a3 {[%clk
0:01:12.1]} 26... Qb7 {[%clk 0:01:18.1]} 27. b4 {[%clk 0:01:13]} 27... Rc7
{[%clk 0:01:16.2]} 28. b5 {[%clk 0:01:04.7]} 28... Be7 {[%clk 0:01:07.7]} 29. a4
{[%clk 0:01:03.6]} 29... a5 {[%clk 0:00:57.4]} 30. Nd4 {[%clk 0:00:57.2]} 30...
Bf6 {[%clk 0:00:51.3]} 31. Qa3 {[%clk 0:00:57.1]} 31... Nb6 {[%clk 0:00:42.6]}
32. Nc6 {[%clk 0:00:52.6]} 32... Rxc6 {[%clk 0:00:42]} 33. bxc6 {[%clk
0:00:53.2]} 33... Qxc6 {[%clk 0:00:42.9]} 34. f3 {[%clk 0:00:34]} 34... Nc5
{[%clk 0:00:41.1]} 35. Kg2 {[%clk 0:00:23.5]} 35... Nbxa4 {[%clk 0:00:39.2]} 36.
Ng4 {[%clk 0:00:19.5]} 36... Bb2 {[%clk 0:00:36.4]} 0-1

[Event "Early-Titled-Tuesday-Blitz-November-28-2023"]
[Site "Chess.com"]
[Date "2023.11.28"]
[Round "6"]
[White "Eloist"]
[Black "missponyo10"]
[Result "0-1"]
[WhiteElo "2345"]
[BlackElo "2204"]
[TimeControl "180+1"]
[EndTime "9:12:42 PST"]
[Termination "missponyo10 won on time"]

1. e4 {[%clk 0:03:00.9]} 1... c5 {[%clk 0:02:59.7]} 2. Nf3 {[%clk 0:03:00.9]}
2... d6 {[%clk 0:02:59.8]} 3. Bb5+ {[%clk 0:02:59.9]} 3... Bd7 {[%clk
0:02:59.4]} 4. Bxd7+ {[%clk 0:02:59.7]} 4... Qxd7 {[%clk 0:03:00.3]} 5. c4
{[%clk 0:02:59.1]} 5... Nc6 {[%clk 0:03:00.7]} 6. d4 {[%clk 0:02:58.4]} 6...
cxd4 {[%clk 0:03:00.2]} 7. Nxd4 {[%clk 0:02:58.3]} 7... Nf6 {[%clk 0:03:01.1]}
8. Nc3 {[%clk 0:02:58.3]} 8... g6 {[%clk 0:03:01.3]} 9. f3 {[%clk 0:02:57.5]}
9... Bg7 {[%clk 0:03:01.6]} 10. Be3 {[%clk 0:02:57.5]} 10... O-O {[%clk
0:03:01.1]} 11. O-O {[%clk 0:02:57]} 11... Rac8 {[%clk 0:03:01.3]} 12. b3 {[%clk
0:02:50.2]} 12... Ne8 {[%clk 0:02:54.5]} 13. Qd2 {[%clk 0:02:45.9]} 13... Nc7
{[%clk 0:02:53.7]} 14. Rad1 {[%clk 0:02:38.5]} 14... Ne6 {[%clk 0:02:48.5]} 15.
Nde2 {[%clk 0:02:35.2]} 15... Rfd8 {[%clk 0:02:33.1]} 16. f4 {[%clk 0:02:32.1]}
16... Qe8 {[%clk 0:02:27.1]} 17. f5 {[%clk 0:02:30.6]} 17... Nc5 {[%clk
0:02:24]} 18. Bh6 {[%clk 0:02:18.3]} 18... e5 {[%clk 0:02:16.6]} 19. Bg5 {[%clk
0:02:03.1]} 19... f6 {[%clk 0:02:07.6]} 20. Be3 {[%clk 0:02:01.3]} 20... g5
{[%clk 0:02:06.7]} 21. h4 {[%clk 0:01:44.5]} 21... h6 {[%clk 0:02:05.3]} 22.
hxg5 {[%clk 0:01:42]} 22... hxg5 {[%clk 0:02:06.2]} 23. Ng3 {[%clk 0:01:39.7]}
23... Nb4 {[%clk 0:01:58.9]} 24. Nd5 {[%clk 0:01:17.2]} 24... Nxd5 {[%clk
0:01:51.7]} 25. Qxd5+ {[%clk 0:01:12.6]} 25... Qf7 {[%clk 0:01:51.1]} 26. Bxc5
{[%clk 0:01:08.1]} 26... Qxd5 {[%clk 0:01:50.1]} 27. Rxd5 {[%clk 0:01:03.3]}
27... dxc5 {[%clk 0:01:48.7]} 28. Rfd1 {[%clk 0:01:00.1]} 28... Rxd5 {[%clk
0:01:45.7]} 29. Rxd5 {[%clk 0:00:59.7]} 29... Rc7 {[%clk 0:01:46.6]} 30. Ne2
{[%clk 0:00:42.5]} 30... Kf7 {[%clk 0:01:45]} 31. Nc3 {[%clk 0:00:42.2]} 31...
Ke7 {[%clk 0:01:45]} 32. Rd3 {[%clk 0:00:40.5]} 32... Rd7 {[%clk 0:01:42.6]} 33.
Rxd7+ {[%clk 0:00:28.2]} 33... Kxd7 {[%clk 0:01:42.6]} 34. Kf2 {[%clk 0:00:28]}
34... Kc6 {[%clk 0:01:40.7]} 35. Kg3 {[%clk 0:00:27.2]} 35... Kb6 {[%clk
0:01:39.9]} 36. Kg4 {[%clk 0:00:25.3]} 36... Ka5 {[%clk 0:01:39.8]} 37. Nd5
{[%clk 0:00:25.1]} 37... b5 {[%clk 0:01:36.4]} 38. cxb5 {[%clk 0:00:21.7]} 38...
Kxb5 {[%clk 0:01:36]} 39. Kh5 {[%clk 0:00:21.9]} 39... c4 {[%clk 0:01:35.1]} 40.
bxc4+ {[%clk 0:00:19.6]} 40... Kxc4 {[%clk 0:01:35.3]} 41. Kg6 {[%clk 0:00:20]}
41... Bf8 {[%clk 0:01:35.2]} 42. Kxf6 {[%clk 0:00:19.6]} 42... Kd4 {[%clk
0:01:34.5]} 43. Kxg5 {[%clk 0:00:11.6]} 43... Kxe4 {[%clk 0:01:34.3]} 44. Nf6+
{[%clk 0:00:11.3]} 44... Kd3 {[%clk 0:01:33.5]} 45. Nd7 {[%clk 0:00:10.7]} 45...
e4 {[%clk 0:01:33.8]} 46. Ne5+ {[%clk 0:00:05.2]} 46... Kd4 {[%clk 0:01:32.7]}
47. Nc6+ {[%clk 0:00:02.8]} 47... Kd3 {[%clk 0:01:31.5]} 48. Kf4 {[%clk
0:00:01.4]} 48... e3 {[%clk 0:01:30.7]} 0-1

[Event "Early-Titled-Tuesday-Blitz-November-28-2023"]
[Site "Chess.com"]
[Date "2023.11.28"]
[Round "6"]
[White "millenium19"]
[Black "acertijo08"]
[Result "1-0"]
[WhiteElo "2483"]
[BlackElo "2288"]
[TimeControl "180+1"]
[EndTime "9:12:45 PST"]
[Termination "millenium19 won by resignation"]

1. e4 {[%clk 0:02:58.5]} 1... c5 {[%clk 0:02:59.6]} 2. Nf3 {[%clk 0:02:58.3]}
2... d6 {[%clk 0:03:00]} 3. Bb5+ {[%clk 0:02:57]} 3... Bd7 {[%clk 0:02:59.7]} 4.
Bxd7+ {[%clk 0:02:56.5]} 4... Qxd7 {[%clk 0:03:00.6]} 5. c4 {[%clk 0:02:56.2]}
5... Nc6 {[%clk 0:03:00.1]} 6. d4 {[%clk 0:02:49.5]} 6... cxd4 {[%clk
0:02:59.4]} 7. Nxd4 {[%clk 0:02:49.5]} 7... Nf6 {[%clk 0:02:58.8]} 8. Nc3 {[%clk
0:02:48.6]} 8... g6 {[%clk 0:02:59.2]} 9. O-O {[%clk 0:02:48.1]} 9... Bg7 {[%clk
0:02:59.6]} 10. Nc2 {[%clk 0:02:31.3]} 10... O-O {[%clk 0:02:54.2]} 11. f3
{[%clk 0:02:31.1]} 11... Rac8 {[%clk 0:02:53.3]} 12. Be3 {[%clk 0:02:27.2]}
12... Ne5 {[%clk 0:02:48.2]} 13. b3 {[%clk 0:02:26.3]} 13... a6 {[%clk 0:02:48]}
14. a4 {[%clk 0:02:24]} 14... e6 {[%clk 0:02:42.1]} 15. Qd2 {[%clk 0:02:20.1]}
15... Rfd8 {[%clk 0:02:40.6]} 16. Rad1 {[%clk 0:02:17.2]} 16... d5 {[%clk
0:02:25.1]} 17. exd5 {[%clk 0:02:13.2]} 17... exd5 {[%clk 0:02:24.8]} 18. Nxd5
{[%clk 0:02:06.2]} 18... Nxd5 {[%clk 0:02:24.3]} 19. cxd5 {[%clk 0:02:06.1]}
19... Rc3 {[%clk 0:02:03.7]} 20. Bg5 {[%clk 0:01:32.5]} 20... Rdc8 {[%clk
0:01:55.9]} 21. Nd4 {[%clk 0:01:12.6]} 21... Qxd5 {[%clk 0:01:42.4]} 22. Kh1
{[%clk 0:01:00.3]} 22... Rd3 {[%clk 0:01:40.7]} 23. Qb4 {[%clk 0:00:52]} 23...
a5 {[%clk 0:01:22]} 24. Qb6 {[%clk 0:00:42.5]} 24... Nd7 {[%clk 0:01:13]} 25.
Qb5 {[%clk 0:00:30.9]} 25... Qxb5 {[%clk 0:00:38.4]} 26. Nxb5 {[%clk 0:00:30.3]}
26... Rxd1 {[%clk 0:00:34.5]} 27. Rxd1 {[%clk 0:00:30.6]} 27... Nc5 {[%clk
0:00:34.6]} 28. h4 {[%clk 0:00:27.6]} 28... Nxb3 {[%clk 0:00:34]} 29. Rd7 {[%clk
0:00:28.1]} 29... h6 {[%clk 0:00:33.3]} 30. Bf4 {[%clk 0:00:27]} 30... Nc5
{[%clk 0:00:33.3]} 31. Rd5 {[%clk 0:00:25.7]} 31... Nxa4 {[%clk 0:00:33.2]} 32.
Nd6 {[%clk 0:00:24.7]} 32... b6 {[%clk 0:00:29.2]} 33. Nxc8 {[%clk 0:00:24.4]}
33... Nc3 {[%clk 0:00:27.8]} 34. Rd8+ {[%clk 0:00:24]} 34... Kh7 {[%clk
0:00:26.9]} 35. Nxb6 {[%clk 0:00:24.5]} 1-0

[Event "Early-Titled-Tuesday-Blitz-November-28-2023"]
[Site "Chess.com"]
[Date "2023.11.28"]
[Round "6"]
[White "kuanysh1981"]
[Black "IljaZaragatski"]
[Result "1-0"]
[WhiteElo "2473"]
[BlackElo "2618"]
[TimeControl "180+1"]
[EndTime "9:12:47 PST"]
[Termination "kuanysh1981 won on time"]

1. d4 {[%clk 0:02:58.9]} 1... Nf6 {[%clk 0:02:58.8]} 2. Nf3 {[%clk 0:02:58]}
2... c5 {[%clk 0:02:59]} 3. g3 {[%clk 0:02:57.4]} 3... cxd4 {[%clk 0:02:57]} 4.
Nxd4 {[%clk 0:02:57.4]} 4... d5 {[%clk 0:02:57.1]} 5. Bg2 {[%clk 0:02:55.9]}
5... e5 {[%clk 0:02:54.5]} 6. Nb3 {[%clk 0:02:55.9]} 6... h6 {[%clk 0:02:53.4]}
7. O-O {[%clk 0:02:55.6]} 7... Nc6 {[%clk 0:02:52.9]} 8. c4 {[%clk 0:02:51.2]}
8... d4 {[%clk 0:02:45.6]} 9. e3 {[%clk 0:02:49.9]} 9... Bg4 {[%clk 0:02:44.3]}
10. Bf3 {[%clk 0:02:49.4]} 10... Bh3 {[%clk 0:02:24]} 11. Bg2 {[%clk 0:02:45.3]}
11... Bxg2 {[%clk 0:02:23.4]} 12. Kxg2 {[%clk 0:02:46.2]} 12... a5 {[%clk
0:02:15.9]} 13. exd4 {[%clk 0:02:44.1]} 13... exd4 {[%clk 0:02:16.1]} 14. Re1+
{[%clk 0:02:30.7]} 14... Be7 {[%clk 0:02:16]} 15. Bf4 {[%clk 0:02:17.1]} 15...
O-O {[%clk 0:02:15.3]} 16. Na3 {[%clk 0:02:14.8]} 16... Bxa3 {[%clk 0:01:32.8]}
17. bxa3 {[%clk 0:02:15.7]} 17... a4 {[%clk 0:01:21.4]} 18. Nc5 {[%clk 0:02:15]}
18... b5 {[%clk 0:01:16.3]} 19. cxb5 {[%clk 0:02:03.3]} 19... Qd5+ {[%clk
0:01:10.9]} 20. Kg1 {[%clk 0:02:02.9]} 20... Qxc5 {[%clk 0:01:08.9]} 21. bxc6
{[%clk 0:02:03]} 21... Rfc8 {[%clk 0:00:37.4]} 22. Rc1 {[%clk 0:01:57.8]} 22...
Qb6 {[%clk 0:00:35.3]} 23. Qf3 {[%clk 0:01:49.1]} 23... Ra5 {[%clk 0:00:24.6]}
24. Bxh6 {[%clk 0:01:37.5]} 24... Nd5 {[%clk 0:00:13.2]} 25. Bd2 {[%clk
0:01:33.5]} 25... Rc5 {[%clk 0:00:08.8]} 26. Rxc5 {[%clk 0:01:32.2]} 26... Qxc5
{[%clk 0:00:09.7]} 27. Rc1 {[%clk 0:01:32]} 27... Qd6 {[%clk 0:00:08.5]} 28. Rc4
{[%clk 0:01:07]} 28... Nb6 {[%clk 0:00:08.7]} 29. Bb4 {[%clk 0:01:01.5]} 29...
Qe5 {[%clk 0:00:05]} 30. Rc5 {[%clk 0:01:00]} 30... Qe6 {[%clk 0:00:03.4]} 31.
Kg2 {[%clk 0:00:57.9]} 31... Qxa2 {[%clk 0:00:02.7]} 32. c7 {[%clk 0:00:56.5]}
32... Qe6 {[%clk 0:00:02.5]} 33. Qd3 {[%clk 0:00:53.9]} 33... Nd7 {[%clk
0:00:01.6]} 34. Rc1 {[%clk 0:00:52.1]} 34... Ne5 {[%clk 0:00:01.7]} 35. Qxd4
{[%clk 0:00:51.4]} 35... Nc6 {[%clk 0:00:01.9]} 36. Qb6 {[%clk 0:00:45.9]} 1-0

[Event "Early-Titled-Tuesday-Blitz-November-28-2023"]
[Site "Chess.com"]
[Date "2023.11.28"]
[Round "6"]
[White "Herman-NY"]
[Black "InitiatingASC"]
[Result "0-1"]
[WhiteElo "2488"]
[BlackElo "2341"]
[TimeControl "180+1"]
[EndTime "9:12:48 PST"]
[Termination "InitiatingASC won by checkmate"]

1. e4 {[%clk 0:03:00.9]} 1... c5 {[%clk 0:02:59.5]} 2. Nf3 {[%clk 0:03:01.4]}
2... Nc6 {[%clk 0:02:59.4]} 3. d4 {[%clk 0:03:01.8]} 3... cxd4 {[%clk
0:03:00.3]} 4. Nxd4 {[%clk 0:03:02.4]} 4... Nf6 {[%clk 0:03:00.5]} 5. Nc3 {[%clk
0:03:02.4]} 5... e5 {[%clk 0:03:01.2]} 6. Ndb5 {[%clk 0:03:02.7]} 6... h6 {[%clk
0:03:01.8]} 7. Be3 {[%clk 0:02:41.5]} 7... d6 {[%clk 0:03:00.8]} 8. Nd5 {[%clk
0:02:34.5]} 8... Nxd5 {[%clk 0:03:00.2]} 9. exd5 {[%clk 0:02:34.6]} 9... Nb8
{[%clk 0:02:54.7]} 10. a4 {[%clk 0:02:31.6]} 10... Be7 {[%clk 0:02:39.9]} 11. a5
{[%clk 0:02:29.8]} 11... O-O {[%clk 0:01:25.4]} 12. Nxa7 {[%clk 0:02:12.2]}
12... Nd7 {[%clk 0:01:17.8]} 13. Nxc8 {[%clk 0:01:36]} 13... Qxc8 {[%clk
0:01:18.7]} 14. Bb5 {[%clk 0:00:57.7]} 14... f5 {[%clk 0:01:11.8]} 15. f3 {[%clk
0:00:52.5]} 15... e4 {[%clk 0:01:02.9]} 16. f4 {[%clk 0:00:50.6]} 16... Bf6
{[%clk 0:00:58]} 17. c3 {[%clk 0:00:45]} 17... Nc5 {[%clk 0:00:57.2]} 18. O-O
{[%clk 0:00:39.2]} 18... Qc7 {[%clk 0:00:46]} 19. b4 {[%clk 0:00:33.7]} 19...
Nd3 {[%clk 0:00:40.4]} 20. Bxd3 {[%clk 0:00:15]} 20... Qxc3 {[%clk 0:00:20.9]}
21. Rb1 {[%clk 0:00:13.5]} 21... exd3 {[%clk 0:00:19.8]} 22. Rf3 {[%clk
0:00:13]} 22... Rfe8 {[%clk 0:00:16.8]} 23. Bd2 {[%clk 0:00:11.8]} 23... Qd4+
{[%clk 0:00:15.8]} 24. Kh1 {[%clk 0:00:11.9]} 24... Re2 {[%clk 0:00:15.1]} 25.
Be1 {[%clk 0:00:07.7]} 25... Rae8 {[%clk 0:00:13.8]} 26. Bg3 {[%clk 0:00:06.6]}
26... d2 {[%clk 0:00:13.2]} 27. Rf1 {[%clk 0:00:07]} 27... Qxd5 {[%clk
0:00:12.8]} 28. b5 {[%clk 0:00:04.8]} 28... Qxg2# {[%clk 0:00:12.9]} 0-1

[Event "Early-Titled-Tuesday-Blitz-November-28-2023"]
[Site "Chess.com"]
[Date "2023.11.28"]
[Round "6"]
[White "Hikaru"]
[Black "JSPrepz"]
[Result "1-0"]
[WhiteElo "3214"]
[BlackElo "2836"]
[TimeControl "180+1"]
[EndTime "9:12:50 PST"]
[Termination "Hikaru won by resignation"]

1. g3 {[%clk 0:03:00.3]} 1... e5 {[%clk 0:03:00]} 2. c4 {[%clk 0:02:57.3]} 2...
Nc6 {[%clk 0:03:00]} 3. Bg2 {[%clk 0:02:57.4]} 3... Bc5 {[%clk 0:03:00.1]} 4. e3
{[%clk 0:02:57.4]} 4... d6 {[%clk 0:03:00.4]} 5. Ne2 {[%clk 0:02:57.2]} 5... a6
{[%clk 0:03:01]} 6. d4 {[%clk 0:02:52.8]} 6... Ba7 {[%clk 0:03:01.3]} 7. b3
{[%clk 0:02:52.7]} 7... h5 {[%clk 0:03:01.5]} 8. h4 {[%clk 0:02:48.8]} 8... Nf6
{[%clk 0:03:00.8]} 9. d5 {[%clk 0:02:47]} 9... Ne7 {[%clk 0:02:57.1]} 10. Nbc3
{[%clk 0:02:46.2]} 10... Bf5 {[%clk 0:02:55.9]} 11. e4 {[%clk 0:02:42.7]} 11...
Bd7 {[%clk 0:02:50.1]} 12. f3 {[%clk 0:02:41.8]} 12... Ng6 {[%clk 0:02:42.1]}
13. Bg5 {[%clk 0:02:41]} 13... c6 {[%clk 0:02:37.4]} 14. dxc6 {[%clk 0:02:34.2]}
14... Bxc6 {[%clk 0:02:29]} 15. Qd2 {[%clk 0:02:34.3]} 15... Bc5 {[%clk
0:02:25.1]} 16. O-O-O {[%clk 0:02:21.8]} 16... b5 {[%clk 0:02:24.1]} 17. cxb5
{[%clk 0:02:20]} 17... axb5 {[%clk 0:02:23.4]} 18. Kb1 {[%clk 0:02:19]} 18...
Qa5 {[%clk 0:02:14.6]} 19. Bxf6 {[%clk 0:02:14.3]} 19... gxf6 {[%clk 0:02:12.1]}
20. Nd5 {[%clk 0:02:14.8]} 20... b4 {[%clk 0:02:04.7]} 21. Nc1 {[%clk
0:01:46.3]} 21... Bxd5 {[%clk 0:01:48.3]} 22. Qxd5 {[%clk 0:01:46]} 22... Ne7
{[%clk 0:01:48.7]} 23. Qd2 {[%clk 0:01:43.2]} 23... Nc6 {[%clk 0:01:48.8]} 24.
Bf1 {[%clk 0:01:38.8]} 24... Nd4 {[%clk 0:01:49]} 25. Bc4 {[%clk 0:01:38.9]}
25... Ke7 {[%clk 0:01:42.1]} 26. g4 {[%clk 0:01:37.1]} 26... Rag8 {[%clk
0:01:01.6]} 27. g5 {[%clk 0:01:34.9]} 27... fxg5 {[%clk 0:00:47.1]} 28. hxg5
{[%clk 0:01:35.8]} 28... Nxf3 {[%clk 0:00:47.7]} 29. Qd5 {[%clk 0:01:35]} 29...
Nxg5 {[%clk 0:00:48]} 30. Nd3 {[%clk 0:01:17.5]} 30... Qa8 {[%clk 0:00:27.9]}
31. Nxc5 {[%clk 0:01:05.7]} 31... Qxd5 {[%clk 0:00:28]} 32. Rxd5 {[%clk
0:00:58.4]} 32... dxc5 {[%clk 0:00:28.7]} 33. Rxc5 {[%clk 0:00:59]} 33... Nf3
{[%clk 0:00:24.1]} 34. Rd1 {[%clk 0:00:50.8]} 34... Rc8 {[%clk 0:00:20.2]} 35.
Rb5 {[%clk 0:00:50.3]} 35... Rc7 {[%clk 0:00:19.1]} 36. Rd3 {[%clk 0:00:47.7]}
36... Nd4 {[%clk 0:00:17.8]} 37. Rxe5+ {[%clk 0:00:47.1]} 37... Kf6 {[%clk
0:00:18.4]} 38. Ra5 {[%clk 0:00:44]} 38... Nc6 {[%clk 0:00:14.4]} 39. Rf5+
{[%clk 0:00:40.7]} 39... Kg6 {[%clk 0:00:12.3]} 40. Rg3+ {[%clk 0:00:40.4]}
40... Kh6 {[%clk 0:00:12.7]} 41. Be2 {[%clk 0:00:40.4]} 1-0